fUST/lending_fUST_20250831
["ID","MTS","AMOUNT","RATE_DAILY","PERIOD"]
[382473541,1756641040248,-480.0,0.00017524,2]
[382473543,1756641040258,-839.17,0.00017524,2]
[382473545,1756641040267,-1881.33,0.00017524,2]
[382473547,1756641040277,-480.0,0.00017524,2]
[382473549,1756641040286,-1262.54,0.00017524,2]
[382473551,1756641040295,-9809.04,0.00017524,2]
[382473553,1756641040304,-1962.54,0.00017524,2]
[382473555,1756641040314,-858.71,0.00017524,2]
[382473557,1756641040323,-1568.51,0.00017524,2]
[382473559,1756641040332,-480.0,0.00017524,2]
[382473561,1756641040340,-480.0,0.00017524,2]
[382473563,1756641040350,-9350.55,0.00017524,2]
[382473565,1756641040359,-490.2,0.00017524,2]
[382473567,1756641040368,-1766.95,0.00017524,2]
[382473569,1756641040377,-480.0,0.00017524,2]
[382473571,1756641040386,-480.0,0.00017524,2]
[382473573,1756641040396,-850.41,0.00017524,2]
[382473575,1756641040408,-4682.5,0.00017524,2]
[382473577,1756641040418,-532.6,0.00017524,2]
[382473579,1756641040431,-1243.99,0.00017524,2]
[382473581,1756641040441,-925.24,0.00017524,2]
[382473583,1756641040450,-531.45,0.00017524,2]
[382473585,1756641040459,-2273.44,0.00017524,2]
[382473588,1756641040469,-1959.04,0.00017524,2]
[382473590,1756641040478,-775.67,0.00017524,2]
[382473592,1756641040488,-480.0,0.00017524,2]
[382473594,1756641040498,-906.98,0.00017524,2]
[382473596,1756641040508,-1741.83,0.00017524,2]
[382473598,1756641040517,-646.75,0.00017524,2]
[382473600,1756641040527,-2385.19,0.00017524,2]
[382473602,1756641040536,-480.0,0.00017524,2]
[382473604,1756641040545,-984.47,0.00017524,2]
[382473606,1756641040555,-1122.59,0.00017524,2]
[382473608,1756641040565,-480.0,0.00017524,2]
[382473610,1756641040575,-4828.0,0.00017525,2]
[382473612,1756641040584,-480.0,0.00017525,2]
[382473614,1756641040594,-480.0,0.00017525,2]
[382473616,1756641040603,-480.0,0.00017525,2]
[382473618,1756641040612,-456.81308376,0.00017525,2]
[382473620,1756641040622,-480.0,0.00017525,2]
[382473622,1756641040631,-480.0,0.00017525,2]
[382473624,1756641040640,-480.0,0.00017525,2]
[382473626,1756641040650,-480.0,0.00017525,2]
[382473628,1756641040659,-480.0,0.00017525,2]
[382473630,1756641040670,-480.0,0.00017525,2]
[382473632,1756641040679,-480.0,0.00017525,2]
[382473634,1756641040689,-546.11,0.00017525,2]
[382473636,1756641040699,-480.0,0.00017525,2]
[382473637,1756641040708,-480.0,0.00017525,2]
[382473638,1756641040718,-528.66,0.00017525,2]
[382473639,1756641040728,-480.0,0.00017525,2]
[382473640,1756641040737,-278.00664309,0.00017525,2]
[382473641,1756641040746,-480.0,0.00017525,2]
[382473642,1756641040756,-480.0,0.00017525,2]
[382473643,1756641040765,-480.0,0.00017525,2]
[382473644,1756641040775,-1229.5,0.00017525,2]
[382473645,1756641040784,-480.0,0.00017525,2]
[382473646,1756641040794,-480.0,0.00017525,2]
[382473647,1756641040804,-481.92102351,0.00017525,2]
[382473648,1756641040813,-480.0,0.00017525,2]
[382473649,1756641040823,-298.80298951,0.00017525,2]
[382473650,1756641040833,-480.0,0.00017525,2]
[382473651,1756641040843,-480.0,0.00017525,2]
[382473652,1756641040852,-480.0,0.00017525,2]
[382473653,1756641040862,-480.0,0.00017525,2]
[382473654,1756641040873,-480.0,0.00017525,2]
[382473655,1756641040882,-480.0,0.00017525,2]
[382473656,1756641040892,-485.54,0.00017525,2]
[382473657,1756641040901,-480.0,0.00017525,2]
[382473658,1756641040911,-480.0,0.00017525,2]
[382473659,1756641040920,-480.0,0.00017525,2]
[382473660,1756641040931,-480.0,0.00017525,2]
[382473661,1756641040940,-480.0,0.00017525,2]
[382473662,1756641040950,-552.52,0.00017525,2]
[382473663,1756641040960,-480.0,0.00017525,2]
[382473664,1756641040969,-637.33,0.00017525,2]
[382473665,1756641040978,-247.99788616,0.00017525,2]
[382473666,1756641040987,-480.0,0.00017525,2]
[382473667,1756641040996,-480.0,0.00017525,2]
[382473668,1756641041005,-480.0,0.00017525,2]
[382473669,1756641041015,-820.0,0.00017525,2]
[382473670,1756641041024,-923.58,0.00017525,2]
[382473671,1756641041033,-480.0,0.00017525,2]
[382473672,1756641041042,-496.53,0.00017525,2]
[382473673,1756641041051,-689.24,0.00017525,2]
[382473674,1756641041060,-480.0,0.00017525,2]
[382473675,1756641041069,-268.76781147,0.00017525,2]
[382473676,1756641041078,-480.0,0.00017525,2]
[382473677,1756641041088,-480.0,0.00017525,2]
[382473678,1756641041098,-480.0,0.00017525,2]
[382473679,1756641041108,-1041.77,0.00017525,2]
[382473680,1756641041117,-583.68,0.00017525,2]
[382473681,1756641041127,-480.0,0.00017525,2]
[382473682,1756641041136,-698.97,0.00017525,2]
[382473683,1756641041146,-1550.12,0.00017525,2]
[382473684,1756641041156,-778.0,0.00017525,2]
[382473685,1756641041166,-480.0,0.00017525,2]
[382473686,1756641041175,-480.0,0.00017525,2]
[382473687,1756641041185,-1438.78,0.00017525,2]
[382473688,1756641041195,-480.0,0.00017525,2]
[382473689,1756641041205,-480.0,0.00017525,2]
[382473690,1756641041215,-480.0,0.00017525,2]
[382473691,1756641041226,-480.0,0.00017525,2]
[382473692,1756641041235,-723.21,0.00017525,2]
[382473693,1756641041244,-445.54626521,0.00017525,2]
[382473694,1756641041254,-480.0,0.00017525,2]
[382473695,1756641041263,-1297.72,0.00017525,2]
[382473696,1756641041273,-480.0,0.00017525,2]
[382473697,1756641041282,-1578.77,0.00017525,2]
[382473698,1756641041291,-480.0,0.00017525,2]
[382473699,1756641041300,-480.0,0.00017525,2]
[382473700,1756641041310,-574.8,0.00017525,2]
[382473701,1756641041320,-480.0,0.00017525,2]
[382473702,1756641041330,-480.0,0.00017525,2]
[382473703,1756641041339,-480.0,0.00017525,2]
[382473704,1756641041349,-480.0,0.00017525,2]
[382473705,1756641041359,-485.31157402,0.00017525,2]
[382473706,1756641041369,-480.0,0.00017525,2]
[382473707,1756641041378,-650.9,0.00017525,2]
[382473708,1756641041387,-707.6,0.00017525,2]
[382473709,1756641041397,-480.0,0.00017525,2]
[382473710,1756641041411,-480.0,0.00017525,2]
[382473711,1756641041421,-1562.44,0.00017525,2]
[382473712,1756641041430,-480.0,0.00017525,2]
[382473713,1756641041440,-480.0,0.00017525,2]
[382473714,1756641041451,-491.2,0.00017525,2]
[382473715,1756641041461,-480.0,0.00017525,2]
[382473716,1756641041470,-480.0,0.00017525,2]
[382473717,1756641041481,-480.0,0.00017525,2]
[382473718,1756641041491,-484.91050785,0.00017525,2]
[382473719,1756641041500,-1949.26,0.00017525,2]
[382473720,1756641041510,-481.98236086,0.00017525,2]
[382473721,1756641041519,-482.2012894,0.00017525,2]
[382473722,1756641041529,-1225.05,0.00017525,2]
[382473723,1756641041539,-480.0,0.00017525,2]
[382473726,1756641041548,-1485.55,0.00017525,2]
[382473728,1756641041558,-480.0,0.00017525,2]
[382473730,1756641041567,-480.0,0.00017525,2]
[382473732,1756641041577,-480.0,0.00017525,2]
[382473733,1756641041587,-1693.91,0.00017525,2]
[382473735,1756641041596,-1794.98,0.00017525,2]
[382473736,1756641041605,-555.57,0.00017525,2]
[382473737,1756641041615,-480.0,0.00017525,2]
[382473738,1756641041624,-480.0,0.00017525,2]
[382473739,1756641041634,-480.0,0.00017525,2]
[382473740,1756641041643,-480.0,0.00017525,2]
[382473741,1756641041653,-535.44,0.00017525,2]
[382473742,1756641041663,-480.0,0.00017525,2]
[382473743,1756641041673,-768.31,0.00017525,2]
[382473744,1756641041683,-480.0,0.00017525,2]
[382473745,1756641041692,-480.0,0.00017525,2]
[382473746,1756641041702,-858.19,0.00017525,2]
[382473747,1756641041712,-191.45152546,0.00017525,2]
[382473748,1756641041721,-480.77654323,0.00017525,2]
[382473749,1756641041731,-674.79,0.00017525,2]
[382473750,1756641041740,-721.32,0.00017525,2]
[382473751,1756641041750,-501.86,0.00017525,2]
[382473752,1756641041760,-673.45,0.00017525,2]
[382473753,1756641041769,-480.0,0.00017525,2]
[382473754,1756641041778,-480.61044114,0.00017525,2]
[382473755,1756641041788,-480.0,0.00017525,2]
[382473756,1756641041798,-480.94,0.00017525,2]
[382473757,1756641041807,-480.0,0.00017525,2]
[382473758,1756641041817,-480.0,0.00017525,2]
[382473759,1756641041826,-887.51,0.00017525,2]
[382473760,1756641041836,-480.0,0.00017525,2]
[382473761,1756641041845,-480.0,0.00017525,2]
[382473762,1756641041855,-480.0,0.00017525,2]
[382473763,1756641041864,-480.0,0.00017525,2]
[382473764,1756641041874,-847.23,0.00017525,2]
[382473765,1756641041884,-1845.48,0.00017525,2]
[382473766,1756641041893,-480.0,0.00017525,2]
[382473767,1756641041903,-480.0,0.00017525,2]
[382473768,1756641041913,-480.0,0.00017525,2]
[382473769,1756641041922,-480.0,0.00017525,2]
[382473770,1756641041931,-480.0,0.00017525,2]
[382473771,1756641041941,-1455.08,0.00017525,2]
[382473772,1756641041951,-480.0,0.00017525,2]
[382473773,1756641041960,-480.0,0.00017525,2]
[382473774,1756641041970,-486.6603232,0.00017525,2]
[382473775,1756641041979,-480.0,0.00017525,2]
[382473776,1756641041989,-822.0,0.00017525,2]
[382473777,1756641041998,-502.79,0.00017525,2]
[382473778,1756641042008,-1734.94,0.00017525,2]
[382473779,1756641042017,-480.72266844,0.00017525,2]
[382473780,1756641042026,-481.38064116,0.00017525,2]
[382473781,1756641042214,-480.0,0.00017525,2]
[382473782,1756641042223,-480.0,0.00017525,2]
[382473783,1756641042233,-480.0,0.00017525,2]
[382473784,1756641042242,-480.0,0.00017525,2]
[382473785,1756641042251,-1464.13,0.00017525,2]
[382473786,1756641042260,-480.0,0.00017525,2]
[382473787,1756641042270,-1569.43,0.00017525,2]
[382473788,1756641042279,-480.0,0.00017525,2]
[382473789,1756641042288,-480.0,0.00017525,2]
[382473790,1756641042298,-480.0,0.00017525,2]
[382473791,1756641042307,-480.0,0.00017525,2]
[382473792,1756641042316,-812.35,0.00017525,2]
[382473793,1756641042327,-1642.79,0.00017525,2]
[382473794,1756641042336,-480.0,0.00017525,2]
[382473795,1756641042345,-480.0,0.00017525,2]
[382473796,1756641042354,-567.49,0.00017525,2]
[382473797,1756641042364,-480.0,0.00017525,2]
[382473798,1756641042373,-411.47985354,0.00017525,2]
[382473799,1756641042382,-480.0,0.00017525,2]
[382473800,1756641042391,-514.23,0.00017525,2]
[382473801,1756641042401,-6863.46,0.00017525,2]
[382473802,1756641042412,-173.13617814,0.00017525,2]
[382473803,1756641042421,-480.0,0.00017525,2]
[382473804,1756641042430,-480.0,0.00017525,2]
[382473805,1756641042439,-1105.26,0.00017525,2]
[382473806,1756641042449,-1815.96,0.00017525,2]
[382473807,1756641042458,-480.0,0.00017525,2]
[382473808,1756641042467,-1033.69,0.00017525,2]
[382473809,1756641042477,-880.48,0.00017525,2]
[382473810,1756641042486,-481.80391927,0.00017525,2]
[382473811,1756641042496,-1603.31,0.00017525,2]
[382473812,1756641042506,-480.0,0.00017525,2]
[382473813,1756641042515,-534.67,0.00017525,2]
[382473814,1756641042523,-480.0,0.00017525,2]
[382473815,1756641042533,-480.0,0.00017525,2]
[382473816,1756641042542,-480.0,0.00017525,2]
[382473817,1756641042551,-480.0,0.00017525,2]
[382473818,1756641042559,-480.0,0.00017525,2]
[382473819,1756641042568,-480.0,0.00017525,2]
[382473820,1756641042577,-923.92,0.00017525,2]
[382473821,1756641042586,-480.0,0.00017525,2]
[382473822,1756641042596,-480.0,0.00017525,2]
[382473823,1756641042605,-1480.17,0.00017525,2]
[382473824,1756641042615,-882.2,0.00017525,2]
[382473825,1756641042624,-555.84,0.00017525,2]
[382473826,1756641042634,-480.0,0.00017525,2]
[382473827,1756641042644,-2155.02,0.00017525,2]
[382473828,1756641042653,-1000.0,0.00017525,2]
[382473829,1756641042662,-481.182224,0.00017525,2]
[382473830,1756641042671,-480.0,0.00017525,2]
[382473831,1756641042681,-3455.94,0.00017525,2]
[382473832,1756641042690,-706.43,0.00017525,2]
[382473833,1756641042700,-480.0,0.00017525,2]
[382473834,1756641042710,-480.0,0.00017525,2]
[382473835,1756641042719,-740.8,0.00017525,2]
[382473836,1756641042728,-480.0,0.00017525,2]
[382473837,1756641042737,-480.88586375,0.00017525,2]
[382473838,1756641042747,-480.0,0.00017525,2]
[382473839,1756641042757,-200.0,0.00017525,10]
[382473840,1756641042767,-480.0,0.00017525,2]
[382473841,1756641042776,-538.7,0.00017525,2]
[382473842,1756641042785,-590.8,0.00017525,2]
[382473843,1756641042795,-1473.14,0.00017525,2]
[382473844,1756641042804,-480.0,0.00017525,2]
[382473845,1756641042814,-480.0,0.00017525,2]
[382473846,1756641042823,-480.0,0.00017525,2]
[382473847,1756641042833,-1129.79,0.00017525,2]
[382473848,1756641042842,-480.0,0.00017525,2]
[382473850,1756641042851,-500.74,0.00017525,2]
[382473851,1756641042860,-480.0,0.00017525,2]
[382473852,1756641042869,-480.0,0.00017525,2]
[382473853,1756641042878,-500.0,0.00017525,2]
[382473854,1756641042887,-480.0,0.00017525,2]
[382473855,1756641042895,-504.98,0.00017525,2]
[382473856,1756641042904,-480.0,0.00017525,2]
[382473857,1756641042913,-480.0,0.00017525,2]
[382473858,1756641042922,-480.0,0.00017525,2]
[382473859,1756641042930,-2642.58,0.00017525,2]
[382473860,1756641042939,-480.0,0.00017525,2]
[382473861,1756641042949,-586.76,0.00017525,2]
[382473862,1756641042957,-480.0,0.00017525,2]
[382473863,1756641042966,-1092.28,0.00017525,2]
[382473864,1756641042975,-770.34,0.00017525,2]
[382473865,1756641042984,-500.0,0.00017526,2]
[382473866,1756641042993,-500.0,0.00017526,2]
[382473867,1756641043002,-500.0,0.00017526,2]
[382473868,1756641043012,-500.0,0.00017526,2]
[382473870,1756641043021,-500.0,0.00017526,2]
[382473872,1756641043029,-480.0,0.00017527,2]
[382473873,1756641043036,-480.0,0.00017527,2]
[382473875,1756641043043,-500.0,0.00017527,2]
[382473877,1756641043050,-151.61138015,0.00017527,2]
[382473879,1756641043057,-154.81963238,0.00017527,2]
[382473882,1756641043065,-151.0,0.00017527,2]
[382473884,1756641043072,-151.0,0.00017527,2]
[382473885,1756641043081,-201.51520989,0.00017527,2]
[382473886,1756641043091,-151.0,0.00017527,2]
[382473887,1756641043100,-151.00466912,0.00017527,2]
[382473888,1756641043109,-272.23210294,0.00017527,2]
[382473889,1756641043119,-2898.88,0.00017527,2]
[382473890,1756641043128,-1737.4,0.00017527,2]
[382473891,1756641043138,-930.35,0.00017527,2]
[382473892,1756641043147,-1216.45,0.00017527,2]
[382473893,1756641043156,-1059.09,0.00017527,2]
[382473894,1756641043166,-628.21,0.00017527,2]
[382473895,1756641043175,-628.21,0.00017527,2]
[382473896,1756641043184,-480.0,0.00017527,2]
[382473897,1756641043194,-1223.71,0.00017527,2]
[382473898,1756641043203,-1733.66,0.00017527,2]
[382473899,1756641043214,-1688.46,0.00017527,2]
[382473900,1756641043223,-481.47897705,0.00017527,2]
[382473901,1756641043232,-831.83,0.00017527,2]
[382473902,1756641043241,-496.54,0.00017527,2]
[382473903,1756641043250,-858.4,0.00017527,2]
[382473904,1756641043259,-1477.0,0.00017527,2]
[382473905,1756641043268,-500.0,0.00017527,2]
[382473906,1756641043277,-500.0,0.00017527,2]
[382473907,1756641043286,-500.0,0.00017527,2]
[382473908,1756641043294,-1076.16,0.00017527,2]
[382473909,1756641043303,-480.0,0.00017527,2]
[382473910,1756641043312,-480.0,0.00017527,2]
[382473911,1756641043322,-586.48,0.00017527,2]
[382473912,1756641043332,-961.35,0.00017527,2]
[382473913,1756641043342,-480.0,0.00017527,2]
[382473914,1756641043352,-238.03301617,0.00017527,2]
[382473915,1756641043361,-213.88174703,0.00017527,2]
[382473916,1756641043371,-480.0,0.00017527,2]
[382473917,1756641043381,-480.0,0.00017527,2]
[382473918,1756641043390,-480.0,0.00017527,2]
[382473919,1756641043400,-500.0,0.00017527,2]
[382473920,1756641043417,-500.0,0.00017527,2]
[382473921,1756641043427,-151.0,0.00017527,2]
[382473922,1756641043437,-1399.32,0.00017527,2]
[382473923,1756641043447,-1317.7,0.00017527,2]
[382473924,1756641043459,-580.87,0.00017527,2]
[382473925,1756641043468,-872.85,0.00017527,2]
[382473926,1756641043478,-480.0,0.00017527,2]
[382473927,1756641043488,-480.0,0.00017527,2]
[382473928,1756641043498,-480.0,0.00017527,2]
[382473929,1756641043507,-1284.0,0.00017527,2]
[382473930,1756641043516,-480.0,0.00017527,2]
[382473931,1756641043526,-2163.1,0.00017527,2]
[382473932,1756641043535,-504.7,0.00017527,2]
[382473933,1756641043544,-151.0,0.00017527,2]
[382473934,1756641043553,-480.0,0.00017527,2]
[382473935,1756641043563,-198.0,0.00017527,2]
[382473936,1756641043573,-151.0,0.00017527,2]
[382473937,1756641043582,-480.0,0.00017527,2]
[382473938,1756641043592,-480.0,0.00017527,2]
[382473940,1756641043604,-500.0,0.00017527,2]
[382473942,1756641043615,-151.0,0.00017527,2]
[382473944,1756641043628,-500.0,0.00017527,2]
[382473945,1756641043637,-500.0,0.00017527,2]
[382473946,1756641043646,-500.0,0.00017527,2]
[382473947,1756641043656,-500.0,0.00017527,2]
[382473948,1756641043666,-995.45,0.00017527,2]
[382473949,1756641043675,-618.42,0.00017527,2]
[382473950,1756641043685,-674.02,0.00017528,2]
[382473951,1756641043694,-480.0,0.00017528,2]
[382473952,1756641043703,-480.0,0.00017528,2]
[382473953,1756641043712,-480.0,0.00017528,2]
[382473954,1756641043722,-480.0,0.00017528,2]
[382473955,1756641043731,-480.0,0.00017528,2]
[382473956,1756641043740,-480.0,0.00017528,2]
[382473957,1756641043749,-481.40225443,0.00017528,2]
[382473958,1756641043758,-684.59,0.00017528,2]
[382473959,1756641043767,-759.74,0.00017528,2]
[382473960,1756641043777,-789.46,0.00017528,2]
[382473961,1756641043787,-480.0,0.00017528,2]
[382473962,1756641043796,-1587.95,0.00017528,2]
[382473963,1756641043805,-153.83075818,0.00017528,2]
[382473964,1756641043814,-480.0,0.00017528,2]
[382473965,1756641043824,-1551.5,0.00017528,2]
[382473966,1756641043833,-480.0,0.00017528,2]
[382473967,1756641043842,-480.0,0.00017528,2]
[382473968,1756641043853,-480.0,0.00017528,2]
[382473969,1756641043861,-1550.77,0.00017528,2]
[382473970,1756641043870,-480.0,0.00017528,2]
[382473971,1756641043879,-480.0,0.00017528,2]
[382473972,1756641043888,-480.0,0.00017528,2]
[382473973,1756641043898,-480.0,0.00017528,2]
[382473974,1756641043907,-571.52321439,0.00017528,2]
[382473975,1756641043917,-596.24306652,0.00017528,2]
[382473976,1756641043927,-836.71,0.00017528,2]
[382473977,1756641043936,-480.0,0.00017528,2]
[382473978,1756641043946,-480.0,0.00017528,2]
[382473979,1756641043961,-480.0,0.00017528,2]
[382473980,1756641043970,-480.0,0.00017528,2]
[382473981,1756641043980,-480.32440113,0.00017528,2]
[382473982,1756641043990,-607.24,0.00017528,2]
[382473983,1756641043999,-480.0,0.00017528,2]
[382473984,1756641044009,-480.0,0.00017528,2]
[382473985,1756641044019,-480.0,0.00017528,2]
[382473986,1756641044028,-572.28,0.00017528,2]
[382473987,1756641044038,-480.0,0.00017528,2]
[382473988,1756641044047,-572.76,0.00017528,2]
[382473989,1756641044057,-480.0,0.00017528,2]
[382473990,1756641044067,-480.0,0.00017528,2]
[382473991,1756641044077,-480.0,0.00017528,2]
[382473992,1756641044087,-480.0,0.00017528,2]
[382473993,1756641044097,-480.0,0.00017528,2]
[382473994,1756641044106,-881.51,0.00017528,2]
[382473995,1756641044115,-571.99,0.00017528,2]
[382473996,1756641044124,-581.67,0.00017528,2]
[382473997,1756641044133,-480.0,0.00017528,2]
[382473998,1756641044143,-519.29,0.00017528,2]
[382473999,1756641044154,-481.33495109,0.00017528,2]
[382474000,1756641044164,-480.0,0.00017528,2]
[382474001,1756641044174,-480.0,0.00017528,2]
[382474002,1756641044184,-480.0,0.00017528,2]
[382474003,1756641044195,-480.0,0.00017528,2]
[382474004,1756641044207,-481.51570582,0.00017528,2]
[382474005,1756641044217,-1000.0,0.00017528,2]
[382474006,1756641044227,-480.0,0.00017528,2]
[382474007,1756641044237,-481.19134569,0.00017528,2]
[382474008,1756641044246,-480.0,0.00017528,2]
[382474009,1756641044257,-480.0,0.00017528,2]
[382474010,1756641044266,-480.0,0.00017528,2]
[382474011,1756641044276,-424.23151174,0.00017528,2]
[382474012,1756641044285,-480.0,0.00017528,2]
[382474013,1756641044296,-481.60340813,0.00017528,2]
[382474014,1756641044306,-480.0,0.00017528,2]
[382474015,1756641044315,-480.0,0.00017528,2]
[382474016,1756641044325,-480.0,0.00017528,2]
[382474017,1756641044334,-480.0,0.00017528,2]
[382474018,1756641044344,-480.0,0.00017528,2]
[382474019,1756641044354,-480.0,0.00017528,2]
[382474020,1756641044363,-867.44,0.00017528,2]
[382474021,1756641044373,-480.0,0.00017528,2]
[382474022,1756641044382,-503.8,0.00017528,2]
[382474023,1756641044391,-966.64,0.00017528,2]
[382474024,1756641044401,-481.37312937,0.00017528,2]
[382474025,1756641044419,-480.90901929,0.00017528,2]
[382474026,1756641044428,-480.77248224,0.00017528,2]
[382474027,1756641044438,-480.73,0.00017528,2]
[382474028,1756641044447,-480.0,0.00017528,2]
[382474029,1756641044456,-480.0,0.00017528,2]
[382474030,1756641044466,-480.0,0.00017528,2]
[382474031,1756641044475,-500.0,0.00017528,2]
[382474032,1756641044485,-659.58,0.00017528,2]
[382474033,1756641044494,-480.41918539,0.00017528,2]
[382474034,1756641044503,-480.0,0.00017528,2]
[382474035,1756641044514,-480.0,0.00017528,2]
[382474036,1756641044525,-500.0,0.00017528,2]
[382474037,1756641044534,-500.0,0.00017528,2]
[382474038,1756641044543,-500.0,0.00017528,2]
[382474039,1756641044553,-500.0,0.00017528,2]
[382474040,1756641044562,-500.0,0.00017528,2]
[382474041,1756641044571,-500.0,0.00017528,2]
[382474042,1756641044581,-500.0,0.00017528,2]
[382474043,1756641044590,-482.59720954,0.00017528,2]
[382474044,1756641044599,-480.0,0.00017528,2]
[382474045,1756641044609,-480.0,0.00017528,2]
[382474046,1756641044618,-480.0,0.00017528,2]
[382474047,1756641044628,-480.0,0.00017528,2]
[382474048,1756641044637,-480.0,0.00017528,2]
[382474049,1756641044646,-1079.7,0.00017528,2]
[382474050,1756641044656,-480.0,0.00017528,2]
[382474051,1756641044665,-177.82874049,0.00017528,2]
[382474052,1756641044675,-480.0,0.00017528,2]
[382474053,1756641044683,-480.0,0.00017528,2]
[382474054,1756641044692,-480.0,0.00017528,2]
[382474055,1756641044702,-628.21,0.00017528,2]
[382474056,1756641044712,-628.21,0.00017528,2]
[382474057,1756641044722,-628.21,0.00017528,2]
[382474058,1756641044731,-628.21,0.00017528,2]
[382474059,1756641044741,-628.21,0.00017528,2]
[382474060,1756641044751,-628.21,0.00017528,2]
[382474061,1756641044760,-628.21,0.00017528,2]
[382474062,1756641044769,-628.21,0.00017528,2]
[382474063,1756641044778,-628.21,0.00017528,2]
[382474064,1756641044788,-628.21,0.00017528,2]
[382474065,1756641044797,-628.21,0.00017528,2]
[382474066,1756641044806,-628.21,0.00017528,2]
[382474067,1756641044816,-628.21,0.00017528,2]
[382474068,1756641044825,-628.21,0.00017528,2]
[382474069,1756641044834,-628.21,0.00017528,2]
[382474070,1756641044843,-628.21,0.00017528,2]
[382474071,1756641044851,-628.21,0.00017528,2]
[382474072,1756641044857,-628.21,0.00017528,2]
[382474073,1756641044864,-628.21,0.00017528,2]
[382474074,1756641044871,-628.21,0.00017528,2]
[382474075,1756641044878,-628.21,0.00017528,2]
[382474076,1756641044886,-628.28109214,0.00017528,2]
[382474077,1756641044893,-1260.41,0.00017528,2]
[382474078,1756641044900,-480.0,0.00017528,2]
[382474079,1756641044907,-484.64387556,0.00017528,2]
[382474080,1756641044915,-480.0,0.00017528,2]
[382474081,1756641044922,-582.99,0.00017528,2]
[382474082,1756641044930,-564.21,0.00017528,2]
[382474083,1756641044937,-481.19532937,0.00017528,2]
[382474084,1756641044944,-480.0,0.00017528,2]
[382474085,1756641044952,-1173.05,0.00017528,2]
[382474086,1756641044960,-481.01038569,0.00017528,2]
[382474087,1756641044967,-480.0,0.00017528,2]
[382474088,1756641044975,-585.33,0.00017528,2]
[382474089,1756641044984,-754.46,0.00017528,2]
[382474090,1756641044994,-480.0,0.00017528,2]
[382474091,1756641045003,-480.0,0.00017528,2]
[382474092,1756641045013,-480.0,0.00017528,2]
[382474093,1756641045023,-921.53,0.00017528,2]
[382474094,1756641045031,-480.0,0.00017528,2]
[382474095,1756641045041,-480.0,0.00017528,2]
[382474096,1756641045050,-603.54817478,0.00017528,2]
[382474097,1756641045060,-480.0,0.00017528,2]
[382474098,1756641045069,-480.0,0.00017528,2]
[382474099,1756641045079,-481.08117347,0.00017528,2]
[382474100,1756641045088,-480.81705646,0.00017528,2]
[382474101,1756641045098,-480.0,0.00017528,2]
[382474102,1756641045266,-480.0,0.00017528,2]
[382474103,1756641045276,-620.5,0.00017528,2]
[382474104,1756641045286,-480.0,0.00017528,2]
[382474105,1756641045296,-481.07907518,0.00017528,2]
[382474106,1756641045306,-480.66036303,0.00017528,2]